bitfinex/quotes_ETHUSD_20250518
["timestamp","ask_amount","ask_price","bid_price","bid_amount"]
[1747580077849,12.45945697,2557.9,2557.8,0.45726493]
[1747580078079,26.2290246,2557.9,2557.8,0.45726493]
[1747580078285,26.2290246,2557.9,2557.6,0.60968657]
[1747580078286,12.45976267,2557.7,2557.6,0.48860103]
[1747580078490,30.09766267,2557.7,2557.6,0.48860103]
[1747580078656,34.17338968,2557.7,2557.6,0.48860103]
[1747580079050,38.27938968,2557.7,2557.6,0.48860103]
[1747580079264,52.37238968,2557.7,2557.6,0.48860103]
[1747580079881,13.222733,2557.0,2556.9,1.20737704]
[1747580080088,0.55,2556.8,2556.1,0.7548]
[1747580080250,3.91205695,2556.2,2556.1,0.7548]
[1747580080446,9.653,2556.8,2555.5,0.7548]
[1747580080447,8.0,2556.7,2555.5,0.7548]
[1747580080651,0.55,2556.3,2555.5,4.66786396]
[1747580080889,3.91224539,2556.1,2555.5,4.66786396]
[1747580081186,9.103,2556.6,2555.7,0.7548]
[1747580081394,13.01446474,2556.6,2555.9,3.91247886]
[1747580081550,0.55,2556.7,2555.7,0.7548]
[1747580081856,3.91198236,2556.3,2555.7,4.66748176]
[1747580082188,5.00584239,2557.2,2555.7,0.7548]
[1747580082354,4.46198452,2556.3,2555.7,4.66754404]
[1747580082547,3.91145338,2556.6,2556.0,3.91225965]
[1747580082772,12.46159286,2556.6,2556.1,0.7548]
[1747580082972,3.91160119,2556.5,2556.1,0.7548]
[1747580083185,3.91177774,2556.4,2556.1,0.7548]
[1747580083359,3.9119313,2556.3,2556.1,0.7548]
[1747580083559,3.91169315,2556.5,2556.1,0.7548]
[1747580083865,3.91117912,2556.8,2556.2,3.91196094]
[1747580084049,3.91117912,2556.8,2556.1,4.66699297]
[1747580084050,9.07746856,2556.9,2556.1,4.66699989]
[1747580084256,9.105,2557.1,2556.4,3.91162424]
[1747580084455,3.91084546,2557.0,2556.4,3.91162424]
[1747580084902,8.0,2557.0,2556.2,0.7919]
[1747580085057,0.7871,2558.8,2556.4,0.7919]
[1747580085251,1.92534428,2559.8,2556.4,0.7919]
[1747580085252,3.9101685,2557.5,2556.9,3.91097609]
[1747580085568,0.7871,2558.3,2557.1,3.91052739]
[1747580085569,3.90977495,2557.7,2557.1,3.91052739]
[1747580085769,4.69598451,2558.3,2556.9,9.57128761]
[1747580085969,3.90930414,2558.0,2557.4,0.7919]
[1747580086173,0.03984894,2557.9,2557.4,0.7919]
[1747580086383,9.105,2558.2,2557.4,0.7919]
[1747580086701,0.98921,2558.1,2557.1,13.8035685]
[1747580086901,3.90988864,2557.7,2557.1,13.8035685]
[1747580087204,9.105,2558.0,2557.1,9.8929]
[1747580087359,3.91036133,2557.4,2557.1,9.8929]
[1747580087694,13.01435856,2558.0,2557.1,0.7919]
[1747580087910,3.9104887,2557.3,2557.1,0.7919]
[1747580088090,9.40035686,2557.9,2557.1,0.7919]
[1747580088264,1.40035686,2557.9,2557.1,0.7919]
[1747580088605,5.30989301,2557.9,2557.3,3.91032349]
[1747580088765,9.105,2557.9,2556.7,0.7805]
[1747580089100,0.98921,2558.1,2557.2,0.7805]
[1747580089285,3.90971424,2557.8,2557.2,13.79195539]
[1747580089505,3.90930593,2558.0,2557.4,3.91010201]
[1747580089686,3.90930593,2558.0,2557.3,4.69083445]
[1747580089687,3.90974027,2557.8,2557.3,0.7805]
[1747580089987,3.90945947,2557.9,2557.3,0.7805]
[1747580090186,8.0,2558.2,2557.5,3.90994058]
[1747580090486,8.0,2558.2,2557.2,9.101]
[1747580090487,3.90900122,2558.2,2557.8,0.7805]
[1747580090797,3.90889901,2558.3,2557.9,9.132]
[1747580091483,3.9087981,2558.4,2557.9,9.132]
[1747580092001,3.90885828,2558.3,2557.9,9.132]
[1747580092201,8.0,2558.5,2558.0,3.90928381]
[1747580092405,8.0,2558.5,2557.9,9.132]
[1747580092574,11.90861081,2558.5,2557.9,9.132]
[1747580092768,3.90777647,2559.0,2558.0,4.68971534]
[1747580093115,3.90878993,2558.4,2558.0,0.7805]
[1747580093299,0.03984894,2558.3,2558.0,0.7805]
[1747580093501,3.90915132,2558.1,2558.0,0.7805]
[1747580094114,3.90915132,2558.1,2557.8,9.1]
[1747580094115,0.55,2558.3,2557.7,0.7892]
[1747580094281,3.90919888,2558.1,2557.7,0.7892]
[1747580094482,3.90927259,2558.1,2557.7,0.7892]
[1747580094903,3.90869293,2558.4,2557.7,0.7892]
[1747580095111,3.90923636,2558.1,2557.7,0.7892]
[1747580095305,3.90954491,2557.9,2557.7,0.7892]
[1747580095498,3.90937737,2558.0,2557.7,0.7892]
[1747580095694,3.90927244,2558.1,2557.7,0.7892]
[1747580095695,3.90954855,2557.9,2557.7,0.7892]
[1747580096020,3.90940742,2558.0,2557.7,0.7892]
[1747580096619,8.0,2558.2,2557.7,0.7892]
[1747580096912,3.90960982,2557.8,2557.7,0.7892]
[1747580097481,3.90960982,2557.8,2557.2,9.1]
[1747580097482,3.90992674,2557.6,2557.2,9.1]
[1747580097709,0.55,2558.0,2556.8,0.7892]
[1747580097908,3.91031323,2557.4,2556.9,3.91096783]
[1747580098086,0.855,2558.1,2557.1,0.7788]
[1747580098289,3.9099364,2557.6,2557.1,4.68939788]
[1747580098602,0.55,2557.8,2557.1,0.7788]
[1747580098820,0.55,2557.8,2557.0,0.36578059]
[1747580098821,3.91068006,2557.1,2557.0,0.36578059]
[1747580099018,3.950529,2557.1,2557.0,0.36578059]
[1747580099389,3.91079655,2557.1,2556.7,0.7788]
[1747580099589,0.55,2557.2,2556.7,0.7788]
[1747580099794,3.91113892,2556.8,2556.7,0.7788]
[1747580100635,11.8401294,2557.2,2556.7,0.7788]
[1747580100851,3.91106411,2556.9,2556.7,0.7788]
[1747580101055,3.91113892,2556.8,2556.7,0.7788]
[1747580101219,3.91095241,2557.0,2556.7,0.7788]
[1747580101558,3.91107213,2556.9,2556.7,0.7788]
[1747580101854,3.91113892,2556.8,2556.7,0.7788]
[1747580102151,3.91105196,2556.9,2556.7,0.7788]
[1747580102355,3.91118529,2556.8,2556.1,9.56669999]
[1747580102506,3.91144488,2556.6,2556.2,9.8788]
[1747580102706,3.91190392,2556.3,2556.2,0.7788]
[1747580102913,0.8088,2556.8,2556.2,0.7788]
[1747580102914,3.91184084,2556.4,2556.2,0.7788]
[1747580103211,0.8088,2556.8,2556.2,0.7788]
[1747580103212,3.91159788,2556.5,2556.2,0.7788]
[1747580103433,3.91190392,2556.3,2556.2,0.7788]
[1747580103870,3.91207526,2556.2,2555.8,9.8989]
[1747580104076,0.55,2556.6,2555.8,0.7989]
[1747580104365,3.91214581,2556.2,2555.8,9.8989]
[1747580104583,3.91210164,2556.2,2555.8,0.7989]
[1747580104868,3.91235204,2556.1,2555.8,0.7989]
[1747580105164,3.91229472,2556.1,2555.8,0.7989]
[1747580105534,3.9120718,2556.2,2555.8,0.7989]
[1747580105871,16.887,2557.0,2555.9,0.03912535]
[1747580106167,26.02,2557.0,2556.0,3.91227917]
[1747580106367,8.0,2556.9,2556.1,9.101]
[1747580106568,3.91133867,2556.7,2556.0,9.101]
[1747580106870,26.02,2557.0,2556.3,0.7989]
[1747580106871,3.91118418,2556.8,2556.3,0.7989]
[1747580107174,3.9109925,2556.9,2556.3,0.7989]
[1747580107370,0.03984894,2556.8,2556.3,0.7989]
[1747580107555,3.9110035,2556.9,2556.3,4.71072568]
[1747580107757,3.9110035,2556.9,2556.4,3.91173928]
[1747580108070,3.91057308,2557.2,2556.6,3.91144488]
[1747580108270,3.90986007,2557.7,2556.7,0.7749]
[1747580108482,4.70259048,2557.9,2556.7,0.7749]
[1747580108483,2.1164,2558.2,2557.2,0.7749]
[1747580108687,3.90971546,2557.8,2557.2,13.78631849]
[1747580108853,3.9096736,2557.8,2557.2,13.78631849]
[1747580109046,0.32685365,2558.1,2557.2,0.7749]
[1747580109246,3.90939859,2558.0,2557.4,3.91015715]
[1747580109983,0.32685365,2558.1,2557.5,0.7749]
[1747580110484,4.23602514,2558.1,2557.5,0.7749]
[1747580110684,4.23602514,2558.1,2557.5,4.68482153]
[1747580110850,0.32685365,2558.1,2557.6,3.90989316]
[1747580111054,0.32685365,2558.1,2557.8,4.6844092]
[1747580111266,0.32685365,2558.1,2557.8,9.8749]
[1747580111482,0.32685365,2558.1,2557.9,3.90933842]
[1747580111885,0.32685365,2558.1,2558.0,3.90930414]
[1747580112253,0.32685365,2558.1,2558.0,6.49267189]
[1747580112458,0.32685365,2558.1,2558.0,6.45358361]
[1747580112786,0.32685365,2558.1,2558.0,4.68420414]
[1747580114491,0.32685365,2558.1,2558.0,0.7749]
[1747580114658,0.32685365,2558.1,2558.0,9.8719]
[1747580115589,0.32685365,2558.1,2558.0,13.78120414]
[1747580115787,0.32685365,2558.1,2558.0,19.0039]
[1747580116002,0.32685365,2558.1,2558.0,22.91320414]
[1747580116373,0.32685365,2558.1,2558.0,25.5954701]
[1747580116567,0.32685365,2558.1,2558.0,7.3664701]
[1747580116772,3.90817508,2558.8,2558.0,19.0029]
[1747580116995,3.90797775,2558.9,2558.4,3.90867881]
[1747580117211,3.90781731,2559.0,2558.5,13.0045397]
[1747580117376,0.793,2559.3,2558.5,13.0045397]
[1747580117377,3.90794541,2558.9,2558.6,0.7749]
[1747580117582,0.793,2559.3,2558.6,0.7749]
[1747580117909,3.90626352,2560.0,2558.6,0.7749]
[1747580117910,4.699493,2559.9,2558.6,2.67509]
[1747580118109,3.90741212,2559.3,2558.7,22.1352253]
[1747580118315,3.90692463,2559.6,2558.6,4.68323027]
[1747580118510,3.90756163,2559.2,2558.7,18.226]
[1747580118710,8.793,2559.9,2558.9,3.9079206]
[1747580118876,4.69942299,2559.9,2559.0,0.7749]
[1747580119076,3.90720358,2559.4,2559.0,0.7749]
[1747580119278,3.90670781,2559.7,2559.0,0.7749]
[1747580119493,1.2699423,2559.8,2559.1,9.095]
[1747580119691,3.94642086,2559.8,2559.0,0.7749]
[1747580119913,3.90747108,2559.2,2559.1,9.093]
[1747580120112,3.907195,2559.4,2559.0,9.093]
[1747580120413,0.793,2559.9,2559.0,13.00067089]
[1747580120611,0.793,2559.9,2559.0,9.093]
[1747580120813,3.90689457,2559.6,2559.1,9.093]
[1747580121031,0.03984894,2559.5,2558.9,9.093]
[1747580121182,0.46993317,2559.8,2559.1,9.093]
[1747580121183,3.90670762,2559.8,2559.1,9.093]
[1747580121371,3.90681122,2559.7,2559.2,0.7749]
[1747580121575,8.0,2559.8,2559.2,4.68234138]
[1747580121813,3.90673727,2559.7,2559.2,4.68234138]
[1747580121977,3.90686638,2559.6,2559.2,0.7749]
[1747580122183,3.90711878,2559.5,2559.2,0.7749]
[1747580122383,3.9068514,2559.7,2559.2,4.68229394]
[1747580122613,3.90663161,2559.8,2559.2,4.68229394]
[1747580122819,3.90649856,2559.9,2559.3,3.9072033]
[1747580123030,8.793,2560.2,2559.4,3.90714783]
[1747580123031,11.90602328,2560.2,2559.4,3.90714783]
[1747580123193,3.90611304,2560.1,2559.6,3.90674019]
[1747580123403,3.90612453,2560.1,2559.8,0.7696]
[1747580123612,20.78839852,2560.6,2559.8,0.7696]
[1747580123613,16.883,2560.6,2559.8,0.7696]
[1747580123801,3.90596155,2560.2,2559.8,0.7696]
[1747580124396,3.90563974,2560.4,2559.8,0.7696]
[1747580124639,16.883,2560.6,2559.8,0.7696]
[1747580124933,3.90604664,2560.2,2559.8,0.7696]
[1747580125133,8.0,2560.5,2559.8,0.7696]
[1747580125430,3.90563974,2560.4,2559.8,0.7696]
[1747580125606,8.0,2560.5,2559.8,0.7696]
[1747580125607,10.1448,2560.8,2559.8,0.7696]
[1747580125807,3.90608422,2560.2,2559.8,0.7696]
[1747580126018,3.90569873,2560.4,2559.8,1.75566]
[1747580126216,3.90561297,2560.5,2559.9,12.99631435]
[1747580126440,3.90565987,2560.4,2559.9,12.99631435]
[1747580126613,3.90560069,2560.5,2559.9,12.99631435]
[1747580126940,3.90564141,2560.4,2560.0,1.47519744]
[1747580127125,8.55,2561.0,2560.0,1.47519744]
[1747580127126,3.90580581,2560.3,2560.0,1.47519744]
[1747580127327,3.90549576,2560.5,2560.1,9.088]
[1747580127506,0.8214,2561.2,2560.3,3.90573386]
[1747580127811,3.90496653,2560.9,2560.4,9.09]
[1747580128012,3.90504145,2560.8,2560.4,9.09]
[1747580128205,0.03984894,2560.9,2560.2,0.7696]
[1747580128411,3.90556631,2560.5,2560.3,9.087]
[1747580128613,3.90563974,2560.4,2560.3,9.087]
[1747580128816,3.90579228,2560.3,2560.2,0.7696]
[1747580129009,3.90579228,2560.3,2560.2,9.8546]
[1747580129248,8.0,2561.0,2560.2,9.8546]
[1747580129545,0.7786,2560.6,2559.7,17.6717]
[1747580129742,3.90604683,2560.2,2559.8,9.085]
[1747580130248,0.55,2560.9,2559.9,0.7967]
[1747580130422,3.90597479,2560.2,2560.0,18.173]
[1747580130623,3.90587276,2560.3,2560.0,18.173]
[1747580130822,3.90571525,2560.4,2560.0,18.173]
[1747580131049,3.90571525,2560.4,2560.0,20.46062352]
[1747580131238,3.90548804,2560.5,2560.0,24.36678695]
[1747580131426,3.90579228,2560.3,2559.9,0.7967]
[1747580131751,3.90594484,2560.2,2560.1,18.172]
[1747580131965,3.9058632,2560.3,2560.1,18.172]
[1747580132537,3.90594484,2560.2,2560.1,9.088]
[1747580132729,3.90594484,2560.2,2560.1,18.171]
[1747580133429,3.90601285,2560.2,2560.1,9.082]
[1747580134441,5.67856191,2561.0,2560.1,9.082]
[1747580134635,3.90557839,2560.5,2560.1,9.082]
[1747580134855,3.90557839,2560.5,2560.2,9.081]
[1747580135361,3.90532903,2560.7,2560.3,0.7838]
[1747580135526,3.90532903,2560.7,2560.4,9.081]
[1747580135727,3.90532903,2560.7,2560.3,0.7838]
[1747580136054,3.90457225,2561.1,2560.5,9.08]
[1747580136258,3.90457225,2561.1,2560.4,9.087]
[1747580136259,3.90558241,2560.5,2560.4,9.087]
[1747580136454,3.90558241,2560.5,2560.4,18.167]
[1747580136755,3.90558241,2560.5,2560.4,9.08]
[1747580137155,3.90558241,2560.5,2560.3,0.7838]
[1747580137459,3.90522063,2560.7,2560.3,0.7838]
[1747580137460,3.90407743,2561.5,2560.9,0.7838]
[1747580137756,3.90433174,2561.3,2561.0,9.079]
[1747580138754,3.90440054,2561.3,2561.0,9.079]
[1747580138963,3.90393783,2561.6,2561.0,9.079]
[1747580139147,3.90412579,2561.4,2561.1,9.078]
[1747580139585,3.90429586,2561.3,2561.1,9.078]
[1747580139749,3.90420107,2561.4,2561.1,9.078]
[1747580139953,3.90381011,2561.6,2560.9,0.7838]
[1747580140147,3.90411493,2561.4,2561.0,9.077]
[1747580140378,3.9045252,2561.2,2561.0,9.077]
[1747580141205,3.90411493,2561.4,2561.0,9.077]
[1747580141399,3.90421317,2561.4,2561.0,9.077]
[1747580141552,3.90434169,2561.3,2561.0,9.077]
[1747580141985,3.90419388,2561.4,2561.0,9.077]
[1747580142213,3.90431664,2561.3,2560.9,0.7838]
[1747580142379,3.9044198,2561.2,2561.1,18.16]
[1747580142581,3.90433926,2561.3,2561.1,18.16]
[1747580142892,3.90424195,2561.4,2560.9,0.7838]
[1747580143049,0.8199,2562.0,2561.0,18.159]
[1747580143492,3.90335298,2561.9,2561.0,18.159]
[1747580143684,3.90409232,2561.5,2561.0,18.159]
[1747580143891,3.90426023,2561.4,2561.1,18.157]
[1747580144391,3.90439321,2561.3,2561.1,18.157]
[1747580144598,3.90439321,2561.3,2560.9,2.44319732]
[1747580144599,0.55,2561.7,2560.9,0.7838]
[1747580144895,0.7816,2562.6,2561.8,3.90342399]
[1747580145064,3.90289011,2562.3,2562.0,0.8024]
[1747580145393,3.9025816,2562.5,2562.0,0.8024]
[1747580145596,4.19216006,2562.8,2562.0,0.8024]
[1747580145780,3.90252797,2562.5,2562.1,9.071]
[1747580146085,3.90289594,2562.2,2562.1,9.071]
[1747580146266,0.7816,2562.9,2562.1,9.071]
[1747580146454,3.9019822,2562.8,2562.1,9.071]
[1747580146654,3.90282302,2562.3,2562.1,9.071]
[1747580146855,1.07868244,2562.9,2562.1,9.071]
[1747580146856,0.7816,2562.9,2562.1,9.071]
[1747580147168,3.9023991,2562.6,2562.2,0.84142595]
[1747580147374,0.7816,2563.2,2562.2,0.8024]
[1747580147571,3.90274362,2562.3,2562.2,0.8024]
[1747580147775,3.90274362,2562.3,2562.2,18.9534]
[1747580147969,3.90274362,2562.3,2562.2,0.8024]
[1747580148266,3.90274362,2562.3,2561.7,16.86]
[1747580148267,3.90308411,2562.1,2561.8,0.7559]
[1747580148478,3.90291058,2562.2,2561.9,18.15]
[1747580148974,3.90306553,2562.1,2561.9,18.15]
[1747580149179,3.90317345,2562.1,2561.9,18.15]
[1747580149507,3.90248748,2562.5,2561.9,18.15]
[1747580149677,8.55,2562.9,2561.8,0.7559]
[1747580149878,3.90304946,2562.1,2561.9,18.147]
[1747580150106,3.90305277,2562.1,2561.9,18.147]
[1747580150417,3.90305277,2562.1,2561.8,0.7559]
[1747580150418,3.90304828,2562.1,2562.0,18.147]
[1747580151672,3.90324055,2562.0,2561.8,0.7559]
[1747580152003,3.90164854,2563.1,2562.2,8.0]
[1747580152305,3.9010582,2563.5,2562.9,3.90182337]
[1747580152599,3.9010582,2563.5,2563.1,0.7559]
[1747580152600,3.90137328,2563.2,2563.1,0.7559]
[1747580152763,3.90152549,2563.1,2563.0,16.858]
[1747580152963,3.90152549,2563.1,2563.0,34.985]
[1747580153196,3.90137328,2563.2,2563.0,34.985]
[1747580153363,3.90061239,2563.7,2563.0,34.985]
[1747580153568,3.90135656,2563.3,2563.0,34.985]
[1747580153863,0.88526012,2563.7,2563.0,34.985]
[1747580154190,3.90063705,2563.7,2563.1,9.064]
[1747580154513,3.90137328,2563.2,2563.1,18.127]
[1747580154885,3.90152549,2563.1,2563.0,16.858]
[1747580155093,3.90152549,2563.1,2562.8,0.7559]
[1747580155399,3.90152549,2563.1,2562.9,34.977]
[1747580155575,3.90152549,2563.1,2563.0,9.062]
[1747580155775,3.90167772,2563.0,2562.9,16.853]
[1747580156007,3.90167772,2563.0,2562.9,34.975]
[1747580156466,8.8043,2564.2,2562.9,37.51170543]
[1747580156665,0.8043,2564.2,2563.2,0.7545]
[1747580156900,3.90046259,2563.8,2563.3,3.90122108]
[1747580157214,8.0,2564.2,2563.4,18.121]
[1747580157411,3.9006565,2563.7,2563.4,19.88924972]
[1747580157710,3.90067836,2563.7,2563.4,19.88924972]
[1747580157864,3.90091671,2563.5,2563.2,0.7545]
[1747580158065,3.90092517,2563.5,2563.2,0.7545]
[1747580158263,0.47040325,2564.3,2563.3,18.12]
[1747580158464,3.89984081,2564.3,2563.4,0.7545]
[1747580158777,0.8043,2564.8,2563.5,0.7545]
[1747580159084,3.89985579,2564.2,2563.7,0.7545]
[1747580159395,3.90000722,2564.1,2563.8,18.117]
[1747580159597,3.89909151,2564.7,2563.9,16.85]
[1747580159811,3.89998668,2564.2,2563.7,0.7545]
[1747580159979,3.89939559,2564.5,2563.7,0.7545]
[1747580160306,3.89939559,2564.5,2563.8,34.966]
[1747580160490,3.90018839,2564.0,2563.8,34.966]
[1747580160669,3.90030812,2563.9,2563.8,16.85]
[1747580160868,3.89996399,2564.2,2563.8,34.965]
[1747580161204,3.89965685,2564.4,2563.8,38.49483972]
[1747580161367,3.89965685,2564.4,2563.8,42.39519597]
[1747580161879,3.89971285,2564.3,2563.8,42.39519597]
[1747580162075,3.89909151,2564.7,2563.8,38.49483972]
[1747580162281,3.89985607,2564.2,2563.8,38.49483972]
[1747580162481,4.70326173,2564.8,2563.9,2.53670543]
[1747580162683,3.89971688,2564.3,2563.9,2.53670543]
[1747580163199,3.89971688,2564.3,2564.0,18.11]
[1747580163400,3.89956353,2564.4,2564.0,18.11]
[1747580163703,3.89962357,2564.4,2564.0,18.11]
[1747580163880,3.89962357,2564.4,2564.0,21.63983972]
[1747580164492,3.8997235,2564.3,2564.0,21.63983972]
[1747580165102,3.8998518,2564.2,2564.1,9.058]
[1747580165300,3.8998518,2564.2,2564.1,18.106]
[1747580165903,3.89974705,2564.3,2564.1,18.106]
[1747580166081,3.8998518,2564.2,2564.1,18.106]
[1747580166283,0.8043,2564.8,2564.1,18.106]
[1747580166488,3.89947957,2564.5,2564.2,2.5663]
[1747580166986,3.89903354,2564.8,2564.3,3.93868728]
[1747580167294,3.89867162,2565.0,2564.4,18.104]
[1747580167484,3.89879953,2564.9,2564.2,2.5663]
[1747580167690,3.89879953,2564.9,2564.3,18.103]
[1747580167883,3.89954765,2564.4,2564.3,18.103]
[1747580168085,3.89940594,2564.5,2564.2,0.7557]
[1747580168517,3.89940594,2564.5,2564.3,18.102]
[1747580169097,3.89965453,2564.4,2564.2,0.7557]
[1747580169401,3.89969972,2564.3,2564.2,0.7557]
[1747580169710,3.89962353,2564.4,2564.2,18.8567]
[1747580170329,3.89892178,2564.9,2564.2,18.8567]
[1747580170633,3.89969972,2564.3,2564.2,0.7557]
[1747580170811,3.89987063,2564.2,2563.9,0.7557]
[1747580171008,3.89987334,2564.2,2564.0,19.85857]
[1747580171179,3.89982115,2564.3,2564.0,19.85857]
[1747580171517,3.8998518,2564.2,2564.1,18.097]
[1747580171890,4.44878747,2564.9,2563.9,0.7557]
[1747580171891,3.900156,2564.0,2563.9,0.7557]
[1747580172094,3.89991154,2564.2,2563.9,0.7557]
[1747580172294,3.89991154,2564.2,2564.0,18.097]
[1747580172832,8.7737,2564.8,2564.0,18.097]
[1747580172990,12.67267967,2564.8,2564.0,18.097]
[1747580173193,8.7737,2564.8,2564.0,18.097]
[1747580173404,3.89996653,2564.2,2564.1,18.096]
[1747580173806,3.90009697,2564.1,2563.9,2.90632027]
[1747580173985,3.90009697,2564.1,2564.0,18.095]
[1747580174191,3.90007868,2564.1,2564.0,18.095]
[1747580174686,4.44909151,2564.7,2564.0,18.095]
[1747580174887,3.9000169,2564.1,2563.9,0.7557]
[1747580175415,3.90030812,2563.9,2563.8,16.85]
[1747580175602,3.90030812,2563.9,2563.8,34.944]
[1747580175807,3.90017978,2564.0,2563.5,0.8313]
[1747580175984,3.90072016,2563.7,2563.6,18.093]
[1747580176189,3.90057697,2563.8,2563.6,18.093]
[1747580176417,3.90046025,2563.8,2563.7,9.037]
[1747580176607,0.809,2564.2,2563.7,18.093]
[1747580176807,3.90046025,2563.8,2563.7,18.093]
[1747580177204,3.90081892,2563.6,2563.2,0.8313]
[1747580177531,3.90092333,2563.5,2563.4,18.092]
[1747580177894,3.90083547,2563.6,2563.4,18.092]
[1747580178292,3.90061453,2563.7,2563.4,18.092]
[1747580178594,3.90091671,2563.5,2563.4,18.092]
[1747580178796,3.90091671,2563.5,2563.4,18.45499942]
[1747580179186,3.90091671,2563.5,2563.4,0.36399942]
[1747580179535,3.90091671,2563.5,2563.4,9.39799942]
[1747580180420,3.90091671,2563.5,2563.4,0.36399942]
[1747580180620,3.90091671,2563.5,2563.4,18.45299942]
[1747580180995,3.90091671,2563.5,2563.4,9.39699942]
[1747580181391,3.90091671,2563.5,2563.4,9.033]
[1747580181696,3.90091671,2563.5,2563.4,9.032]
[1747580182299,3.90106889,2563.4,2562.9,16.842]
[1747580182498,3.90182995,2562.9,2562.8,0.45400951]
[1747580182699,3.90182995,2562.9,2562.8,9.85044241]
[1747580182899,3.90182995,2562.9,2562.8,0.81944241]
[1747580184903,3.90182995,2562.9,2562.1,17.29600951]
[1747580185229,0.85709077,2562.9,2562.2,18.061]
[1747580185526,3.90251411,2562.5,2562.2,18.061]
[1747580185707,3.90260938,2562.4,2562.2,18.061]
[1747580185908,3.90267929,2562.4,2562.3,18.064]
[1747580186233,0.7674,2563.0,2562.3,18.063]
[1747580186425,3.90231206,2562.6,2562.3,21.98920309]
[1747580187890,3.90250754,2562.5,2562.1,17.29600951]
[1747580188096,3.90270248,2562.4,2562.1,16.842]
[1747580188323,3.90240848,2562.6,2562.2,9.027]
[1747580188727,3.90183092,2562.9,2562.2,9.027]
[1747580188924,3.9020054,2562.8,2562.3,3.90266205]
[1747580189125,0.7674,2563.0,2562.5,3.90242316]
[1747580189325,0.7674,2563.0,2562.3,3.36745466]
[1747580189326,3.90122376,2563.3,2562.6,9.846]
[1747580189526,0.7524,2563.4,2562.7,9.027]
[1747580189693,3.90151033,2563.2,2562.6,4.71421336]
[1747580189894,3.90151033,2563.2,2562.7,18.06]
[1747580190098,3.9015665,2563.1,2562.7,18.06]
[1747580190299,3.9015665,2563.1,2562.8,18.06]
[1747580190300,3.90160023,2563.1,2562.8,18.06]
[1747580190500,3.90169658,2563.0,2562.8,18.06]
[1747580190897,3.90114521,2563.4,2562.9,18.059]
[1747580191234,0.7524,2563.5,2563.0,9.025]
[1747580191414,0.7524,2563.5,2563.1,9.025]
[1747580191617,3.90150114,2563.2,2563.1,9.025]
[1747580191924,3.90106889,2563.4,2562.4,3.9024983]
[1747580192120,3.90201123,2562.8,2562.5,18.8661953]
[1747580192537,0.85941197,2563.4,2562.3,4.17945466]
[1747580192538,3.90152549,2563.1,2562.3,4.17945466]
[1747580192703,3.90253103,2562.5,2562.4,18.057]
[1747580193033,3.90279496,2562.3,2562.1,17.29600951]
[1747580193252,3.90289594,2562.2,2562.1,17.29600951]
[1747580193420,3.90289594,2562.2,2562.1,0.45400951]
[1747580194657,3.90320062,2562.0,2561.9,9.021]
[1747580195019,3.90301075,2562.2,2561.9,9.34684511]
[1747580195224,3.90320062,2562.0,2561.9,9.34684511]
[1747580195736,3.90320062,2562.0,2561.9,0.32584511]
[1747580196137,3.90365772,2561.7,2561.5,0.0916337]
[1747580196346,3.90381011,2561.6,2561.5,0.0916337]
[1747580196717,5.20621011,2561.6,2561.5,0.0916337]
[1747580197037,13.20621011,2561.6,2561.5,0.0916337]
[1747580197649,0.55,2561.2,2560.6,25.866]
[1747580197825,3.90501972,2560.9,2560.6,25.866]
[1747580198028,3.90518217,2560.7,2560.6,9.018]
[1747580198228,3.90609162,2560.2,2560.1,9.019]
[1747580198430,0.55,2560.8,2560.0,9.47300951]
[1747580198431,3.90586996,2560.3,2560.0,9.47300951]
[1747580199151,0.55,2560.7,2560.0,9.47300951]
[1747580199454,3.90597219,2560.2,2560.0,0.45400951]
[1747580199662,11.90609741,2560.1,2560.0,0.45400951]
[1747580199842,12.45609741,2560.1,2560.0,0.45400951]
[1747580200168,0.7524,2560.1,2560.0,0.45400951]
[1747580200471,5.24834635,2560.1,2560.0,0.45400951]
[1747580200773,3.90707178,2559.5,2559.3,9.017]
[1747580201059,3.90707178,2559.5,2558.5,9.019]
[1747580201060,0.7524,2559.4,2558.5,9.019]
[1747580201213,3.90751675,2559.2,2558.5,9.831]
[1747580201417,0.55,2559.3,2558.3,4.36275907]
[1747580201615,3.90789204,2559.0,2558.4,12.9266871]
[1747580201821,0.55,2559.3,2558.4,9.018]
[1747580202017,0.58984894,2559.3,2558.4,9.018]
[1747580202369,0.58984894,2559.3,2558.5,9.018]
[1747580202370,3.90817906,2558.8,2558.5,9.018]
[1747580202657,12.20305035,2559.6,2558.4,9.017]
[1747580202658,0.7524,2558.7,2558.4,9.017]
[1747580202827,3.90849719,2558.6,2558.4,9.017]
[1747580203032,0.7524,2558.7,2558.4,9.017]
[1747580203033,4.66074961,2558.7,2558.4,9.017]
[1747580203568,0.8095,2559.1,2558.5,0.03908769]
[1747580203728,0.8095,2559.8,2558.6,9.043]
[1747580204055,3.90696281,2559.6,2558.9,3.90781182]
[1747580204216,4.71606543,2559.8,2558.5,3.90842486]
[1747580204549,4.71606543,2559.8,2558.9,3.90781937]
[1747580204550,3.90699213,2559.6,2558.9,3.90781937]
[1747580204751,3.90699213,2559.6,2558.4,5.62165155]
[1747580204752,3.9071146,2559.5,2558.4,5.62165155]
[1747580205064,3.90759267,2559.2,2558.5,12.92644281]
[1747580205368,3.90792918,2558.9,2558.1,3.90910502]
[1747580205523,3.90826473,2558.7,2558.4,9.017]
[1747580205850,0.55,2559.0,2557.9,9.017]
[1747580206071,3.90841,2558.6,2557.9,9.017]
[1747580206220,3.90862666,2558.5,2557.9,12.92643687]
[1747580206565,3.90852659,2558.6,2557.9,9.017]
[1747580206720,3.90855637,2558.5,2558.0,3.90920314]
[1747580206917,3.90808191,2558.8,2558.0,3.90918265]
[1747580207125,3.90829077,2558.7,2558.1,3.90912759]
[1747580207359,0.55,2559.0,2558.0,3.90924469]
[1747580207541,3.90851426,2558.6,2558.0,3.90924469]
[1747580207723,0.03984894,2558.5,2557.9,9.017]